Cogmind - Beta 11.1 @@@ ROGUE MODE // 2022.05.08 @ 13:53:44 Player: Olga Result: Self-destructed Performance ------------- Evolutions (1) 500 Regions Visited (3) 600 Robots Destroyed (7) 35 Value Destroyed (77) 77 Prototype IDs (1) 20 Alien Tech Used (0) 0 Bonus (200) 200 TOTAL SCORE: 1432 Bonus ------- Pacifist 200 Cogmind --------- Core Integrity 207/400 Matter 160/300 Energy 100/100 System Corruption 0% Temperature Cool (0) Movement Flying (40) Location -9/Mines Parts ------- > --- POWER (1) -------- (None) > --- PROPULSION (2) --- Improved Flight Unit > --- UTILITY (4) ------ Targeting Computer > --- WEAPON (2) ------- Light Assault Rifle Grenade Launcher > --- INVENTORY (5) ---- Light Ion Engine Wheel Faulty Improved Flight Unit Small Storage Unit Shock Trap Peak State ------------ > --- POWER ------------ (None) > --- PROPULSION ------- Aluminum Leg Improved Flight Unit > --- UTILITY ---------- Targeting Computer > --- WEAPON ----------- Small Laser Small Laser > --- INVENTORY -------- Light Ion Engine Wheel Small Storage Unit Light Assault Rifle Grenade Launcher [Rating: 7] Favorites ----------- Power Ion Engine Engine Ion Engine Propulsion Aluminum Leg Leg Aluminum Leg Flight Unit Improved Flight Unit Utility Targeting Computer Storage Small Storage Unit Processor Targeting Computer Weapon Light Assault Rifle Energy Gun Small Laser Ballistic Gun Light Assault Rifle Launcher Grenade Launcher Build | -11 -10 -9 -9 ------- Run | Scr Mat Mat Min Slots Evolved 2 | . . 2 . Power . | . . . . Propulsion . | . . . . Utility 2 | . . 2 . Weapon . | . . . . Parts Attached 7 | . . 5 2 Power . | . . . . Engine . | . . . . Core . | . . . . Reactor . | . . . . Propulsion 1 | . . 1 . Treads . | . . . . Leg . | . . . . Wheel . | . . . . Hover . | . . . . Flight 1 | . . 1 . Utility 1 | . . 1 . Device . | . . . . Storage . | . . . . Processor 1 | . . 1 . Hackware . | . . . . Protection . | . . . . Artifact . | . . . . Weapon 5 | . . 3 2 Energy Gun 1 | . . 1 . Energy Cannon . | . . . . Ballistic Gun 2 | . . 1 1 Ballistic Cannon . | . . . . Launcher 2 | . . 1 1 Special Weapon . | . . . . Impact Weapon . | . . . . Slashing Weapon . | . . . . Piercing Weapon . | . . . . Special Melee Weapon . | . . . . Unidentified Prototypes 1 | . . 1 . Parts Lost 3 | . . 3 . Power . | . . . . Propulsion 1 | . . 1 . Utility . | . . . . Weapon 2 | . . 2 . Highest Loss Streak 3 | . . 3 . To Critical Strikes . | . . . . Average Slot Usage (%) 48 | . 57 52 43 Leg 11 | . 28 19 . Flight 5 | . . 1 11 Processor 8 | . . 11 11 Energy Gun 6 | . 14 11 . Ballistic Gun 10 | . 14 6 10 Launcher 6 | . . 2 11 Naked Turns . | . . . . Heaviest Build 4 | 2 2 4 4 Greatest Support 5 | 3 3 5 5 Greatest Overweight (x) 1 | . . 1 . Average Overweight (x) . | . . . . Largest Inventory Capacity 8 | 8 5 5 5 Average Capacity 5 | 8 5 5 5 Most Carried 5 | 5 5 5 5 Average Carried 4 | 4 4 4 4 Final Capacity 5 | 5 5 5 5 Final Carried 5 | 5 5 5 5 Class Distribution -------------------- 100% | Mutant Dominant Class ---------------- Mutant | -10/Materials Mutant | -9/Materials Mutant | -9/Mines Resources | -11 -10 -9 -9 ----------- Run | Scr Mat Mat Min Matter Collected 200 | 200 . . . Remotely . | . . . . Salvage Created 48 | . . 26 22 Parts 7 | . . 5 2 Haulers Intercepted . | . . . . Recyclers Shooed 1 | . . 1 . Parts Field Recycled . | . . . . Retrieved Matter . | . . . . Parts Self-Destructed . | . . . . Prevented . | . . . . Kills | -11 -10 -9 -9 ------- Run | Scr Mat Mat Min Combat Hostiles Destroyed 6 | . . 3 3 AOE 6 | . . 3 3 Classes Destroyed 2 | . . 2 . Tunneler 1 | . . 1 . Swarmer 6 | . . 3 3 Best Kill Streak 4 | . . 4 3 Combat Bots Only 3 | . . 3 3 Max Kills in Single Turn 2 | . . 2 2 Gunslinging . | . . . . Exploded 2 | . . 2 2 Melee . | . . . . Uniques/NPCs Destroyed . | . . . . Combat | -11 -10 -9 -9 -------- Run | Scr Mat Mat Min Damage Taken 496 | . . 440 56 Core 193 | . . 168 25 Absorbed by Shields . | . . . . Core Remaining (%) 100 | 100 100 . . Volleys Fired 7 | . . 3 4 Largest 2 | . . 2 1 Hottest 70 | . . 70 30 Shots Fired 10 | . . 6 4 Gun 3 | . . 3 . Cannon . | . . . . Launcher 7 | . . 3 4 Special . | . . . . Kinetic . | . . . . Thermal 3 | . . 3 . Explosive 7 | . . 3 4 Electromagnetic . | . . . . Robot Hit Streak 6 | . . 2 6 Robot Miss Streak . | . . . . Penetration Max . | . . . . Secondary Targets . | . . . . Shots Hit Robots 6 | . . 2 4 Core Hits 6 | . . 4 2 Critical Kills . | . . . . Critical Parts Destroyed . | . . . . Critical Strikes . | . . . . Melee Attacks . | . . . . Impact . | . . . . Slashing . | . . . . Piercing . | . . . . Sneak Attacks . | . . . . Combat Hostiles . | . . . . Follow-up Attacks . | . . . . Damage Inflicted 490 | . . 243 247 Guns 12 | . . 12 . Cannons . | . . . . Explosions 478 | . . 231 247 Melee . | . . . . Ramming . | . . . . Kinetic . | . . . . Thermal 12 | . . 12 . Explosive 478 | . . 231 247 Electromagnetic . | . . . . Impact . | . . . . Slashing . | . . . . Piercing . | . . . . Highest Corruption . | . . . . Average Corruption . | . . . . Corruption Purged . | . . . . Corruption Blocked . | . . . . Overload Shots . | . . . . Overflow Damage 35 | . . . 35 Projectiles . | . . . . Explosions 35 | . . . 35 Melee . | . . . . Knockbacks . | . . . . Impact . | . . . . Kinetic . | . . . . Secondary . | . . . . Self-Inflicted Damage 28 | . . 20 8 Shots 2 | . . 1 1 Rammed . | . . . . Targets Rammed . | . . . . Kicked . | . . . . Crushed . | . . . . Highest Temperature 4 | . . 4 . Average Temperature 4 | . . 4 . Received Heat Transfer 144 | . . 138 6 Siege Activations . | . . . . Robots Corrupted . | . . . . Combat Hostiles . | . . . . Parts Fried . | . . . . Impact Corruptions . | . . . . Robots Melted . | . . . . Combat Hostiles . | . . . . Parts Melted . | . . . . Heat Transferred 25 | . . 25 . Parts Sabotaged . | . . . . Parts Stolen . | . . . . Parts Stripped . | . . . . Power Chain Reactions . | . . . . Missiles Intercepted . | . . . . Alert | -11 -10 -9 -9 ------- Run | Scr Mat Mat Min Peak Influence 217 | . 30 185 217 Initial 60 | . . 12 60 Average 121 | . 19 85 192 Maximum Alert Level 1 | . . . 1 Low Security (%) 85 | 100 100 100 70 Level 1 14 | . . . 29 Level 2 . | . . . . Level 3 . | . . . . Level 4 . | . . . . Level 5 . | . . . . High Security . | . . . . Max Security . | . . . . Squads Dispatched . | . . . . Investigation . | . . . . Extermination . | . . . . Reinforcement . | . . . . Assault . | . . . . Garrison . | . . . . Intercept . | . . . . Searches Triggered . | . . . . Construction Impeded . | . . . . Haulers Reinforced . | . . . . Active Scanning Responses . | . . . . Cargo Convoy Interrupts . | . . . . Stealth | -11 -10 -9 -9 --------- Run | Scr Mat Mat Min Distress Signals . | . . . . Communications Jammed . | . . . . Distress Signals . | . . . . Times Spotted 17 | . 2 8 7 Peak Tracking Total 6 | . 2 6 3 Tactical Retreats 1 | . . . 1 Traps | -11 -10 -9 -9 ------- Run | Scr Mat Mat Min Traps Triggered . | . . . . Indirectly . | . . . . Trap Hack Attempts . | . . . . Triggered . | . . . . Disarmed . | . . . . Reprogrammed . | . . . . Reused . | . . . . Traps Extracted . | . . . . Installed . | . . . . Triggered . | . . . . Most Traps Carried 1 | . . . 1 Machines | -11 -10 -9 -9 ---------- Run | Scr Mat Mat Min Machines Disabled 1 | . . . 1 Max in Single Turn 1 | . . . 1 Machines Sabotaged . | . . . . Garrisons Compromised . | . . . . Overloaded Fab Kills . | . . . . Hacking | -11 -10 -9 -9 --------- Run | Scr Mat Mat Min Machines Accessed 1 | . . 1 . Terminals 1 | . . 1 . Fabricators . | . . . . Repair Stations . | . . . . Recycling Units . | . . . . Scanalyzers . | . . . . Garrison Access . | . . . . Total Hacks 2 | . . 2 . Successful 1 | . . 1 . Failed 1 | . . 1 . Catastrophic . | . . . . Database Lockouts . | . . . . Manual 2 | . . 2 . Terminals 2 | . . 2 . Fabricators . | . . . . Repair Stations . | . . . . Recycling Units . | . . . . Scanalyzers . | . . . . Garrison Access . | . . . . Terminal Hacks . | . . . . Fabricator Hacks . | . . . . Repair Station Hacks . | . . . . Recycling Unit Hacks . | . . . . Scanalyzer . | . . . . Garrison Access Hacks . | . . . . Unauthorized Hacks 1 | . . 1 . Terminals 1 | . . 1 . Botnet 1 | . . 1 . Fabricators . | . . . . Repair Stations . | . . . . Recycling Units . | . . . . Scanalyzers . | . . . . Garrison Access . | . . . . Data Cores Recovered . | . . . . Used . | . . . . Hacking Detections 1 | . . 1 . Full Trace Events . | . . . . Feedback Events . | . . . . Feedback Blocked . | . . . . Robot Schematics Acquired . | . . . . Robots Built . | . . . . Authchips . | . . . . Time . | . . . . Total Robot Build Rating . | . . . . Part Schematics Acquired . | . . . . Parts Built . | . . . . Authchips . | . . . . Time . | . . . . Total Part Build Rating . | . . . . Parts Repaired . | . . . . Time . | . . . . Parts Recycled . | . . . . Recycled Matter . | . . . . Retrieved Matter . | . . . . Retrieved Components . | . . . . Parts Scanalyzed . | . . . . Part Schematics Acquired . | . . . . Parts Damaged . | . . . . Bothacking | -11 -10 -9 -9 ------------ Run | Scr Mat Mat Min Used RIF Installer . | . . . . Robots Hacked . | . . . . Non-combat . | . . . . Combat . | . . . . Robot Hacks Applied . | . . . . Relay Couplers Released . | . . . . Fabnet Peak Effective % . | . . . . Robots Rewired . | . . . . Allies Hacked . | . . . . Hacks Repelled . | . . . . Allies | -11 -10 -9 -9 -------- Run | Scr Mat Mat Min Total Allies . | . . . . Largest Group . | . . . . Highest-Rated Group . | . . . . Highest-Rated Ally . | . . . . Total Orders . | . . . . Ally Attacks . | . . . . Total Damage . | . . . . Kills . | . . . . Allies Corrupted . | . . . . Allies Melted . | . . . . Intel | -11 -10 -9 -9 ------- Run | Scr Mat Mat Min Robot Analysis Total . | . . . . Derelict Logs Recovered 1 | . . . 1 Drone Launches . | . . . . Drone Recoveries . | . . . . Exploration | -11 -10 -9 -9 ------------- Run | Scr Mat Mat Min Turns Passed 275 | 3 56 85 131 Spaces Moved 529 | 1 108 123 297 Core 221 | 1 108 112 . Treads . | . . . . Legs . | . . . . Wheels . | . . . . Hover . | . . . . Flight 308 | . . 11 297 Fastest Speed 40 | 50 50 40 40 Average Speed 44 | 50 50 51 40 Slowest Speed 100 | 50 50 100 40 Overloaded Moves . | . . . . Propulsion Burnouts . | . . . . Robots Hopped 1 | . . . 1 Cave-ins Triggered . | . . . . Exploration Rate (%) 27 | 2 18 17 71 Regions Visited 3 Branch Regions 1 Pre-discovered Areas . | . . . . Known Exits Taken . | . . . . Unknown Exits Taken 3 | 1 1 1 . Scrap Searched . | . . . . Spaces Dug 4 | . . 4 . Terrain Destroyed 24 | . . 12 12 Melee . | . . . . Projectile . | . . . . AOE 24 | . . 12 12 Terrain Rammed . | . . . . Walls Destroyed . | . . . . Machines Disabled . | . . . . Actions | -11 -10 -9 -9 --------- Run | Scr Mat Mat Min Total 552 | 5 109 135 303 Wait 1 | . . 1 . Move 524 | . 107 122 295 Hop 1 | . . . 1 Pick Up 3 | . 1 1 1 Fast Attach 3 | . . 3 . Attach 2 | . . 1 1 Detach 2 | 2 . . . Swap 3 | . . 2 1 Drop 6 | 3 1 2 . Fire 7 | . . 3 4 Melee . | . . . . Ram . | . . . . Kick . | . . . . Crush . | . . . . Escape Stasis . | . . . . Rewire . | . . . . Trap . | . . . . Miscellaneous . | . . . . Route ------- -11/Scrapyard -10/Materials -9/Materials -9/Mines History --------- Turn | Location | Event 4 | -11/Scrapyard | Discovered new exit (range 0) 4 | -11/Scrapyard | Entered Materials 58 | -10/Materials | Discovered new exit (range 4) 60 | -10/Materials | Entered another Materials area 60 | -9/Materials | Evolved 2 slots: Utility x2 132 | -9/Materials | Discovered new exit (range 15) 145 | -9/Materials | Entered Mines 161 | -9/Mines | Found a hidden stash of uninstalled traps 169 | -9/Mines | Lost 3 parts (1n2w) 197 | -9/Mines | Learned Materials garrison access intel 276 | -9/Mines | Self-destructed Last Messages --------------- 00141_ U-05 Engineer lays Concrete. 00143_ T-07 Excavator is excavating. LOCATION=UNKNOWN GOAL=ESCAPE Something is scanning the area. 00147_ Destroyed Flight Unit. 00147_ S-10 Pest destroyed. 00147_ Laser Drill disabled. 00153_ Destroyed Lgt. Ion Engine. 00153_ S-10 Pest destroyed. 00157_ The unstable cave ceiling collapses. 00161_ A stash of uninstalled traps is collected here! 00162_ Acquired Shock Trap. 00197_ Acquired derelict log, extracted data. Data stored: Materials garrison access intel. 00230_ K-01 Serf cleans the Plasma Injector. 00251_ A derelict is hurriedly installing traps. 00253_ L7-RWZ(g): "Hehe, this'll put a wrench in their mining defense operations..." 00253_ L7-RWZ(g) slips into the shadows. Map ----- +----------------------------------------------------+ | | | | | | | | | ????????????????????????????????????????? | | ????????????????????????????????????????? | | ################????????????????????????? | | # # # #????????????????????????? | | # #????????????????????????? | | #????????????????????????? | | & # #????????????????????????? | | & # #????????????????????????? | | & ## #????????????????????????? | | # ## # " #????????????????????????? | | ## #### """ #????????????????????????? | | ?# #??#########????????????????????????? | | ?# #???????????????????????????????????? | | ?# ####???????????#????????????????????? | | ?# ???????????## ???????????????????? | | ## ##???????????## ??????????????????? | | #?????????#### ??????????????????? | | ## #??????????ss ????####?????????? | | # #????????????# ???## ##????????? | | ####??????????# #?## #????????? | | ##??????????# ## #????????? | | # ##??# ?????# @ ##????????? | | # ### #### #?????????? | | #?????????? | | ##?????????? | | ## ###### ##??????????? | | ##?# ?????## ####?????????? | | #???#### ?????# #?????????? | | ##???????? ??????# #?????????? | | ##????????? ??????## ### #?????????? | | ##?????????????????###??# #?????????? | | #??????????????????????# #?????????? | | #??????????????????????# #?????????? | | #??????????????????????# #?????????? | | ##??????????????????????# #?????????? | | ###?????????????########### #?????????? | | ##???????????????# #?????????? | | ##???????????????# ##########?????????? | | ##????????????### #??????????????????? | | ##??????????## ########???????????? | | #??????##### # ^ #???????????? | | #??????# ## #^## #??####?????? | | ##??????# ## # #### ####??? | | ##??????# ## ## # #^## ##?? | | # ###????# ## ##^^ # #?? | | ## ##???# ## ^ #?? | +----------------------------------------------------+ Best States ------------- Heat Dissipation 28 Energy Generation 5 Energy Capacity 100 Matter Stores 300 Matter Capacity 300 Sight Range 16 Terrain Scan Density 10 Evasion (%) 62 Targeting Accuracy 5 Item Schematics ----------------- None Robot Schematics ------------------ None Fabricated ------------ Nothing Alien Tech Used ----------------- None Achievements -------------- None Challenges ------------ None Game ------ Seed CoolantRemoteFlail Manual? 0 Play Time 00:06:14 Cumulative 222.4 hours Start 2022.05.08 @ 13:49:06 End 2022.05.08 @ 13:53:44 Sessions 1 Manual Loads 0 Difficulty Rogue Special Mode None Game No. 321 Rogue 318 Adventurer 0 Explorer 3 Win Type - Total 8 Types 8/0/0/0/0/0/0/0/0 Lore% 69 Gallery% 72 Achievement% 60 Wizard Run 0 Options --------- ASCII 1 Keyboard 0 Movement Vi Keybinds 0 Fullscreen 1 Font 18/SmallcapsGlow Map View 76x50 Tactical HUD 1 Map Filters NONE Filters NONE Steam 1 RUN: 5012cf25-0d27-414b-a798-5273727e3962